bitfinex-derivatives/quotes_BNBF0:USTF0_20250617
["timestamp","ask_amount","ask_price","bid_price","bid_amount"]
[1750198499641,1.14962838,648.02,647.48,1.53744617]
[1750198501740,1.14962838,648.02,647.49,1.466]
[1750198502346,1.14962838,648.02,647.5,1.447]
[1750198507643,1.14962838,648.03,647.5,1.447]
[1750198508547,1.14962838,648.02,647.5,1.447]
[1750198509848,1.14962838,648.03,647.5,1.447]
[1750198517552,1.14962838,648.02,647.5,1.447]
[1750198520749,1.14962838,648.05,647.5,1.447]
[1750198520953,1.14962838,648.06,647.5,1.447]
[1750198524255,1.14962838,648.05,647.5,1.447]
[1750198525352,1.14962838,648.06,647.5,1.447]
[1750198525557,1.14962838,648.04,647.5,1.447]
[1750198526557,1.14962838,648.04,647.51,1.203]
[1750198527253,1.14962838,648.03,647.51,1.203]
[1750198527453,1.14962838,647.9,647.51,1.203]
[1750198528859,1.14962838,647.89,647.51,1.203]
[1750198529357,1.14962838,647.9,647.51,1.203]
[1750198529559,1.14962838,647.89,647.51,1.203]
[1750198530253,1.14962838,647.9,647.51,1.203]
[1750198531257,1.14962838,647.9,647.52,1.447]
[1750198532258,1.14962838,647.91,647.52,1.447]
[1750198534556,1.14962838,647.92,647.52,1.447]
[1750198534957,1.14962838,647.91,647.52,1.447]
[1750198535159,1.14962838,647.89,647.52,1.447]
[1750198535357,1.14962838,647.9,647.52,1.447]
[1750198535955,1.14962838,647.89,647.52,1.447]
[1750198537359,1.14962838,647.9,647.52,1.447]
[1750198537760,1.14962838,647.89,647.52,1.447]
[1750198538361,1.14962838,647.9,647.52,1.447]
[1750198540563,1.14962838,647.91,647.52,1.447]
[1750198542264,1.14962838,647.91,647.51,1.203]
[1750198543059,1.14962838,647.9,647.51,1.203]
[1750198543265,1.14962838,647.89,647.51,1.203]
[1750198544262,1.14962838,647.9,647.51,1.203]
[1750198544962,1.14962838,647.89,647.51,1.203]
[1750198545369,1.14962838,647.89,647.52,1.161]
[1750198545769,1.14962838,647.9,647.52,1.161]
[1750198547271,1.14962838,647.91,647.52,1.161]
[1750198547870,1.53744617,648.02,647.52,1.161]
[1750198547871,1.14962838,647.9,647.52,1.161]
[1750198548270,1.14962838,647.91,647.52,1.161]
[1750198552175,1.14962838,647.91,647.53,1.336]
[1750198555580,1.14962838,647.9,647.53,1.336]
[1750198557176,1.14962838,647.91,647.53,1.336]
[1750198557475,1.14962838,647.88,647.53,1.336]
[1750198557979,1.53744617,648.01,647.53,1.336]
[1750198557980,1.14962838,647.87,647.53,1.336]
[1750198558176,1.14962838,647.86,647.53,1.336]
[1750198558381,1.14962838,647.87,647.53,1.336]
[1750198558682,1.14962838,647.86,647.53,1.336]
[1750198558882,1.14962838,647.84,647.53,1.336]
[1750198559284,1.53744617,647.97,647.53,1.336]
[1750198559285,1.14962838,647.85,647.53,1.336]
[1750198560482,1.14962838,647.91,647.53,1.336]
[1750198560785,1.53744617,648.06,647.53,1.336]
[1750198560786,1.14962838,647.92,647.53,1.336]
[1750198561183,1.14962838,647.91,647.53,1.336]
[1750198561382,1.14962838,647.92,647.53,1.336]
[1750198562388,1.14962838,647.92,647.54,1.084]
[1750198562587,1.14962838,647.93,647.54,1.084]
[1750198562886,1.14962838,647.95,647.54,1.084]
[1750198563289,1.14962838,648.03,647.54,1.084]
[1750198563588,1.80605588,648.2,647.54,1.084]
[1750198563589,1.14962838,648.01,647.54,1.084]
[1750198566288,1.14962838,648.05,647.54,1.084]
[1750198566490,1.14962838,648.04,647.54,1.084]
[1750198570789,1.14962838,648.03,647.54,1.084]
[1750198573094,1.14962838,648.02,647.54,1.084]
[1750198573591,1.14962838,648.03,647.54,1.084]
[1750198574794,1.14962838,648.02,647.54,1.084]
[1750198576296,1.14962838,647.98,647.54,1.084]
[1750198576595,1.14962838,647.97,647.54,1.084]
[1750198577296,1.14962838,647.96,647.54,1.084]
[1750198577495,1.53744617,648.11,647.54,1.084]
[1750198577496,1.14962838,647.95,647.54,1.084]
[1750198577996,1.14962838,647.94,647.54,1.084]
[1750198579296,1.14962838,647.93,647.54,1.084]
[1750198579493,1.14962838,647.94,647.54,1.084]
[1750198580197,1.14962838,647.93,647.54,1.084]
[1750198581493,1.14962838,647.92,647.54,1.084]
[1750198582697,1.14962838,647.91,647.54,1.084]
[1750198584295,1.14962838,647.9,647.54,1.084]
[1750198584502,1.14962838,647.92,647.54,1.084]
[1750198585299,1.14962838,647.91,647.54,1.084]
[1750198586297,1.14962838,647.9,647.54,1.084]
[1750198587200,1.14962838,647.89,647.54,1.084]
[1750198589404,1.14962838,647.9,647.54,1.084]
[1750198590205,1.14962838,647.88,647.54,1.084]
[1750198591207,1.14962838,647.88,647.53,1.336]
[1750198591504,1.14962838,647.89,647.27,1.84643623]
[1750198592804,1.14962838,647.89,647.27,0.30899006]
[1750198593505,1.14962838,647.89,647.28,1.447]
[1750198594009,1.14962838,647.89,647.29,1.547]
[1750198594308,1.14962838,647.9,647.29,1.547]
[1750198594503,1.14962838,647.88,647.3,1.53744617]
[1750198594907,1.14962838,647.88,647.29,3.08444617]
[1750198595111,1.14962838,647.88,647.3,1.53744617]
[1750198595910,1.14962838,647.89,647.29,1.547]
[1750198596815,1.14962838,647.88,647.29,1.547]
[1750198597115,1.14962838,647.87,647.29,1.547]
[1750198597712,1.14962838,647.83,647.29,1.547]
[1750198597917,1.14962838,647.8,647.29,1.547]
[1750198598113,1.14962838,647.78,647.29,1.547]
[1750198598416,1.14962838,647.73,647.29,1.547]
[1750198598617,1.14962838,647.64,647.29,1.547]
[1750198599113,1.14962838,647.63,647.29,1.547]
[1750198600720,1.14962838,647.65,647.29,1.547]
[1750198601516,1.14962838,647.66,647.29,1.547]
[1750198602722,1.14962838,647.67,647.29,1.547]
[1750198603621,2.30625467,647.93,647.29,1.547]
[1750198603622,1.14962838,647.68,647.29,1.547]
[1750198604618,1.14962838,647.69,647.29,1.547]
[1750198604823,1.14962838,647.67,647.29,1.547]
[1750198606219,1.14962838,647.68,647.29,1.547]
[1750198606424,1.14962838,647.67,647.29,1.547]
[1750198606618,1.14962838,647.68,647.29,1.547]
[1750198607024,1.53744617,647.8,647.29,1.547]
[1750198607319,1.14915728,647.68,647.29,1.547]
[1750198607720,1.14915728,647.69,647.29,1.547]
[1750198608423,1.14915728,647.67,647.29,1.547]
[1750198608620,1.14915728,647.66,647.29,1.547]
[1750198609822,1.14915728,647.67,647.29,1.547]
[1750198610025,1.14915728,647.65,647.29,1.547]
[1750198610221,1.14915728,647.67,647.29,1.547]
[1750198610421,1.14915728,647.66,647.29,1.547]
[1750198611722,1.14915728,647.67,647.29,1.547]
[1750198612522,0.268646,648.04,647.29,1.547]
[1750198612523,1.14915728,647.65,647.29,1.547]
[1750198613727,1.14915728,647.66,647.29,1.547]
[1750198613925,1.14915728,647.68,647.29,1.547]
[1750198614127,1.14915728,647.67,647.29,1.547]
[1750198614428,1.14915728,647.66,647.29,1.547]
[1750198615928,1.14915728,647.68,647.29,1.547]
[1750198616228,1.14915728,647.7,647.29,1.547]
[1750198619625,1.14915728,647.71,647.29,1.547]
[1750198620028,1.14915728,647.7,647.29,1.547]
[1750198620424,1.14915728,647.71,647.29,1.547]
[1750198624327,1.14915728,647.7,647.29,1.547]
[1750198624531,1.14915728,647.66,647.29,1.547]
[1750198625627,0.268646,648.04,647.29,1.547]
[1750198625628,1.14915728,647.62,647.29,1.547]
[1750198625828,1.14915728,647.61,647.29,1.547]
[1750198626332,1.14915728,647.62,647.29,1.547]
[1750198627033,1.14915728,647.62,647.3,1.371]
[1750198630237,1.14915728,647.64,647.3,1.371]
[1750198630437,1.14915728,647.65,647.3,1.371]
[1750198631035,1.14915728,647.64,647.31,1.062]
[1750198631231,1.14915728,647.65,647.31,1.062]
[1750198632030,1.14915728,647.64,647.31,1.062]
[1750198633637,1.14915728,647.65,647.31,1.062]
[1750198633937,1.14915728,647.64,647.31,1.062]
[1750198634536,1.53744617,647.75,647.31,1.062]
[1750198634537,1.14915728,647.65,647.31,1.062]
[1750198635438,1.14915728,647.64,647.31,1.062]
[1750198637141,1.14915728,647.65,647.31,1.062]
[1750198637338,1.14915728,647.64,647.31,1.062]
[1750198637642,1.14915728,647.65,647.31,1.062]
[1750198638640,1.14915728,647.64,647.31,1.062]
[1750198638846,1.14569182,647.64,647.31,1.062]
[1750198640039,1.14569182,647.65,647.31,1.062]
[1750198640440,1.14569182,647.66,647.31,1.062]
[1750198640945,1.14569182,647.65,647.31,1.062]
[1750198642951,1.14569182,647.65,647.3,1.371]
[1750198643753,1.14569182,647.64,647.3,1.371]
[1750198644349,1.14569182,647.65,647.3,1.371]
[1750198644650,1.14569182,647.65,647.31,1.219]
[1750198645447,1.14569182,647.66,647.31,1.219]
[1750198645650,1.14569182,647.65,647.31,1.219]
[1750198647048,1.14569182,647.66,647.31,1.219]
[1750198647248,1.14569182,647.7,647.31,1.219]
[1750198647448,1.14569182,647.71,647.31,1.219]
[1750198648952,1.14569182,647.7,647.31,1.219]
[1750198649156,1.14569182,647.68,647.31,1.219]
[1750198649655,1.14569182,647.67,647.31,1.219]
[1750198651656,1.14569182,647.66,647.31,1.219]
[1750198652059,1.14569182,647.65,647.31,1.219]
[1750198653860,1.14569182,647.64,647.31,1.219]
[1750198654054,1.14569182,647.64,647.32,1.447]
[1750198654355,1.14569182,647.63,647.32,1.447]
[1750198654559,1.14569182,647.62,647.32,1.447]
[1750198655959,1.14569182,647.6,647.32,1.447]
[1750198656660,1.14569182,647.58,647.32,1.447]
[1750198657458,1.14569182,647.57,647.32,1.447]
[1750198657655,1.14569182,647.54,647.32,1.447]
[1750198660257,1.14569182,647.53,647.32,1.447]
[1750198661758,1.14569182,647.52,647.32,1.447]
[1750198661963,1.14569182,647.53,647.32,1.447]
[1750198662363,1.14569182,647.52,647.32,1.447]
[1750198664664,1.53744617,647.62,647.32,1.447]
[1750198664665,1.14569182,647.51,647.32,1.447]
[1750198667065,1.14569182,647.51,647.31,1.219]
[1750198672567,1.14569182,647.51,647.27,1.447]
[1750198674269,1.14569182,647.5,647.27,1.447]
[1750198674573,1.14569182,647.46,647.27,1.447]
[1750198674773,1.14569182,647.45,647.28,1.282]
[1750198674971,1.14569182,647.44,647.28,1.282]
[1750198675472,1.14569182,647.42,647.28,1.282]
[1750198677270,1.14569182,647.44,647.28,1.282]
[1750198679775,1.14569182,647.46,647.28,1.282]
[1750198679975,1.14569182,647.51,647.28,1.282]
[1750198680375,1.14569182,647.55,647.28,1.282]
[1750198680677,1.14569182,647.62,647.28,1.282]
[1750198680875,1.14569182,647.64,647.28,1.282]
[1750198681075,1.14569182,647.62,647.28,1.282]
[1750198681480,1.14569182,647.63,647.28,1.282]
[1750198682881,1.14569182,647.66,647.28,1.282]
[1750198683776,1.14569182,647.68,647.28,1.282]
[1750198683975,1.14569182,647.67,647.28,1.282]
[1750198684180,1.14569182,647.66,647.28,1.282]
[1750198684374,1.14569182,647.67,647.29,1.175]
[1750198684879,1.14569182,647.68,647.29,1.175]
[1750198688478,1.14569182,647.69,647.29,1.175]
[1750198688678,1.14569182,647.68,647.29,1.175]
[1750198689377,1.14569182,647.69,647.29,1.175]
[1750198690582,1.14569182,647.65,647.29,1.175]
[1750198691378,1.14569182,647.66,647.29,1.175]
[1750198695382,1.14569182,647.67,647.29,1.175]
[1750198696986,1.14569182,647.79,647.29,1.175]
[1750198697688,1.14569182,647.78,647.29,1.175]
[1750198697889,1.14569182,647.71,647.29,1.175]
[1750198698091,1.14569182,647.7,647.29,1.175]
[1750198698592,1.14569182,647.71,647.29,1.175]
[1750198699392,1.14569182,647.72,647.29,1.175]
[1750198702491,1.53744617,647.88,647.29,1.175]
[1750198702791,1.15118214,647.73,647.29,1.175]
[1750198703494,1.15118214,647.73,647.3,1.352]
[1750198704494,1.15118214,647.72,647.3,1.352]
[1750198705493,1.15118214,647.73,647.3,1.352]
[1750198707998,1.15118214,647.69,647.3,1.352]
[1750198708898,1.15118214,647.67,647.3,1.352]
[1750198709100,1.15118214,647.66,647.3,1.352]
[1750198709395,1.15118214,647.63,647.3,1.352]
[1750198710005,1.15118214,647.62,647.3,1.352]
[1750198710503,1.15118214,647.61,647.3,1.352]
[1750198712200,1.15118214,647.6,647.3,1.352]
[1750198713906,0.268646,648.04,647.3,1.352]
[1750198713907,1.15118214,647.58,647.3,1.352]
[1750198714106,1.15118214,647.56,647.3,1.352]
[1750198715108,1.15118214,647.56,647.31,1.054]
[1750198718810,1.15118214,647.57,647.31,1.054]
[1750198723707,1.15118214,647.54,647.31,1.054]
[1750198724712,1.15118214,647.53,647.31,1.054]
[1750198725512,1.15118214,647.54,647.31,1.054]
[1750198725708,1.15118214,647.53,647.31,1.054]
[1750198726112,0.268646,648.04,647.31,1.054]
[1750198726113,1.15118214,647.52,647.31,1.054]
[1750198726514,1.15118214,647.5,647.31,1.054]
[1750198726813,1.15118214,647.52,647.31,1.054]
[1750198728411,1.15118214,647.53,647.31,1.054]
[1750198728714,1.15118214,647.51,647.31,1.054]
[1750198730516,1.15118214,647.53,647.31,1.054]
[1750198733018,1.15118214,647.53,647.3,1.352]
[1750198734022,1.15118214,647.52,647.3,1.352]
[1750198734417,1.15118214,647.53,647.3,1.352]
[1750198736120,1.15118214,647.52,647.3,1.352]
[1750198737217,1.15118214,647.53,647.3,1.352]
[1750198737415,1.15118214,647.52,647.3,1.352]
[1750198740420,1.15118214,647.54,647.3,1.352]
[1750198740619,1.15118214,647.55,647.3,1.352]
[1750198745827,1.15118214,647.57,647.3,1.352]
[1750198746524,1.15118214,647.57,647.28,1.447]
[1750198747828,1.15118214,647.56,647.28,1.447]
[1750198748830,1.15118214,647.56,647.29,1.596]
[1750198751429,1.15118214,647.55,647.29,1.596]
[1750198755638,1.15118214,647.52,647.29,1.596]
[1750198756134,1.15118214,647.53,647.29,1.596]
[1750198757740,1.15118214,647.52,647.29,1.596]
[1750198758340,1.15118214,647.55,647.29,1.596]
[1750198759037,1.15118214,647.59,647.29,1.596]
[1750198761338,1.15118214,647.58,647.29,1.596]
[1750198763339,1.15118214,647.57,647.29,1.596]
[1750198764341,1.15118214,647.6,647.29,1.596]
[1750198764646,1.15118214,647.61,647.29,1.596]
[1750198765345,1.15118214,647.62,647.29,1.596]
[1750198766346,1.15118214,647.61,647.3,1.447]
[1750198767947,1.15118214,647.59,647.3,1.447]
[1750198768242,1.15118214,647.57,647.3,1.447]
[1750198768442,1.15118214,647.56,647.3,1.447]
[1750198769047,1.15118214,647.55,647.3,1.447]
[1750198769749,1.15118214,647.54,647.3,1.447]
[1750198773749,1.15118214,647.53,647.3,1.447]
[1750198774445,1.15118214,647.52,647.3,1.447]
[1750198775147,1.15118214,647.53,647.3,1.447]
[1750198775350,1.15118214,647.51,647.3,1.447]
[1750198775549,1.15118214,647.49,647.3,1.447]
[1750198777948,1.15118214,647.5,647.3,1.447]
[1750198778349,1.53744617,647.61,647.3,1.447]
[1750198778548,1.15217773,647.52,647.31,1.465]
[1750198778853,1.15217773,647.51,647.31,1.465]
[1750198779851,1.15217773,647.52,647.31,1.465]
[1750198780250,1.15217773,647.53,647.31,1.465]
[1750198780454,1.15217773,647.54,647.31,1.465]
[1750198781353,1.15217773,647.61,647.31,1.465]
[1750198781654,0.268646,648.04,647.31,1.465]
[1750198781655,1.15217773,647.62,647.31,1.465]
[1750198782556,1.15217773,647.63,647.31,1.465]
[1750198786757,1.15217773,647.62,647.31,1.465]
[1750198786953,1.15217773,647.61,647.32,1.447]
[1750198787157,1.15217773,647.62,647.32,1.447]
[1750198788357,1.15217773,647.63,647.32,1.447]
[1750198788556,1.15188105,647.67,647.32,1.447]
[1750198789155,1.15188105,647.68,647.32,1.447]
[1750198789559,1.15188105,647.69,647.32,1.447]
[1750198789855,1.15188105,647.7,647.32,1.447]
[1750198790360,1.15188105,647.73,647.32,1.447]
[1750198790756,1.15188105,647.75,647.32,1.447]
[1750198791061,1.15188105,647.77,647.32,1.447]
[1750198791356,1.15188105,647.78,647.32,1.447]
[1750198792462,1.15188105,647.81,647.32,1.447]
[1750198792663,1.15188105,647.83,647.32,1.447]
[1750198793461,1.15188105,647.84,647.32,1.447]
[1750198794458,1.15188105,647.85,647.32,1.447]
[1750198795362,0.26871653,647.92,647.32,1.447]
[1750198795363,1.15188105,647.88,647.32,1.447]
[1750198795662,1.15188105,647.87,647.32,1.447]
[1750198795859,1.15188105,647.88,647.32,1.447]
[1750198796563,1.15188105,647.89,647.32,1.447]
[1750198797863,1.15188105,647.9,647.32,1.447]
[1750198798361,1.42059758,647.92,647.32,1.447]
[1750198800561,1.15188105,647.9,647.32,1.447]
[1750198800762,1.15188105,647.91,647.32,1.447]
[1750198802368,1.15188105,647.89,647.32,1.447]
[1750198802565,1.15188105,647.88,647.32,1.447]
[1750198802865,1.15188105,647.89,647.32,1.447]
[1750198803066,1.15188105,647.88,647.32,1.447]
[1750198804769,1.15188105,647.89,647.32,1.447]
[1750198805666,1.15188105,647.9,647.32,1.447]
[1750198807370,1.15188105,647.9,647.33,1.075]
[1750198811171,0.2686823,647.99,647.33,1.075]
[1750198811172,1.15188105,647.91,647.33,1.075]
[1750198811472,1.15188105,647.9,647.33,1.075]
[1750198811673,1.15188105,647.91,647.33,1.075]
[1750198814575,1.15188105,647.93,647.33,1.075]
[1750198816578,1.15188105,647.92,647.33,1.075]
[1750198817073,1.15188105,647.93,647.33,1.075]
[1750198817578,0.2686823,647.99,647.33,1.075]
[1750198817579,1.15188105,647.92,647.33,1.075]
[1750198817779,1.15188105,647.93,647.33,1.075]
[1750198818075,1.15188105,647.92,647.34,1.447]
[1750198819676,1.15188105,647.91,647.34,1.447]
[1750198820482,1.15188105,647.92,647.34,1.447]
[1750198823382,1.15188105,647.91,647.34,1.447]
[1750198823883,1.15188105,647.84,647.34,1.447]
[1750198824182,1.15188105,647.82,647.34,1.447]
[1750198824577,1.15188105,647.83,647.34,1.447]
[1750198824882,1.15188105,647.81,647.34,1.447]
[1750198826079,1.15188105,647.8,647.34,1.447]
[1750198826484,1.15188105,647.81,647.34,1.447]
[1750198826985,1.15188105,647.8,647.34,1.447]
[1750198829788,1.15188105,647.82,647.34,1.447]
[1750198831787,1.15188105,647.8,647.34,1.447]
[1750198833792,1.15188105,647.79,647.34,1.447]
[1750198836794,1.15188105,647.78,647.34,1.447]
[1750198838394,1.15188105,647.77,647.34,1.447]
[1750198839492,1.15188105,647.76,647.34,1.447]
[1750198839696,1.15188105,647.74,647.34,1.447]
[1750198840097,1.15188105,647.73,647.34,1.447]
[1750198841599,1.15188105,647.72,647.34,1.447]
[1750198843899,1.15188105,647.72,647.33,1.075]
[1750198844594,1.15188105,647.71,647.33,1.075]
[1750198847401,1.15188105,647.7,647.33,1.075]
[1750198847601,1.15188105,647.7,647.34,1.064]
[1750198847798,1.15075121,647.7,647.34,1.064]
[1750198850503,1.15075121,647.71,647.34,1.064]
[1750198850900,1.15075121,647.71,647.35,1.373]
[1750198851803,1.15075121,647.82,647.35,1.373]
[1750198852098,1.15075121,647.81,647.35,1.373]
[1750198852704,1.15075121,647.82,647.35,1.373]
[1750198853004,1.15075121,647.83,647.35,1.373]
[1750198853502,1.15075121,647.85,647.35,1.373]
[1750198856006,1.15075121,647.86,647.35,1.373]
[1750198859309,1.15075121,647.91,647.35,1.373]
[1750198860709,1.15075121,647.9,647.35,1.373]
[1750198861011,1.15075121,647.91,647.35,1.373]
[1750198861709,1.15075121,647.92,647.35,1.373]
[1750198863006,1.15075121,647.94,647.35,1.373]
[1750198863206,1.15075121,647.92,647.35,1.373]
[1750198867313,1.15075121,647.91,647.35,1.373]
[1750198867715,1.15075121,647.9,647.35,1.373]
[1750198869310,1.15075121,647.87,647.35,1.373]
[1750198872819,1.15075121,647.87,647.36,1.413]
[1750198873620,1.15075121,647.86,647.36,1.413]
[1750198873816,1.15075121,647.87,647.36,1.413]
[1750198875425,1.15075121,647.86,647.36,1.413]
[1750198876519,1.53744617,647.97,647.36,1.413]
[1750198876520,1.15075121,647.87,647.36,1.413]
[1750198877421,1.15075121,647.86,647.36,1.413]
[1750198880930,1.15075121,647.88,647.36,1.413]
[1750198883530,1.15075121,647.87,647.36,1.413]
[1750198883931,1.15075121,647.86,647.36,1.413]
[1750198884333,1.15075121,647.85,647.36,1.413]
[1750198885030,1.15075121,647.85,647.35,1.373]
[1750198885730,1.15075121,647.84,647.35,1.373]
[1750198886331,1.15075121,647.83,647.35,1.373]
[1750198887536,1.15075121,647.81,647.35,1.373]
[1750198888132,1.15056374,647.81,647.35,1.373]
[1750198888330,1.15056374,647.81,647.36,1.38]
[1750198890937,1.15056374,647.8,647.36,1.38]
[1750198895238,1.15056374,647.78,647.36,1.38]
[1750198895440,1.15056374,647.78,647.37,1.175]
[1750198898538,1.15113299,647.78,647.37,1.175]
[1750198899541,1.15113299,647.77,647.37,1.175]
[1750198901344,1.15113299,647.81,647.37,1.175]
[1750198901543,1.15113299,647.79,647.37,1.175]
[1750198902342,1.15113299,647.78,647.37,1.175]
[1750198905847,1.15113299,647.78,647.38,1.447]
[1750198906548,1.15113299,647.77,647.38,1.447]
[1750198907045,1.15113299,647.78,647.38,1.447]
[1750198907648,0.26865948,648.08,647.38,1.447]
[1750198907649,1.15113299,647.77,647.38,1.447]
[1750198908545,1.15113299,647.76,647.38,1.447]
[1750198908950,1.15113299,647.77,647.38,1.447]
[1750198910447,0.26865948,648.08,647.38,1.447]
[1750198910448,1.15113299,647.76,647.38,1.447]
[1750198911351,1.15113299,647.72,647.38,1.447]
[1750198911551,1.15113299,647.73,647.38,1.447]
[1750198911750,1.15113299,647.72,647.38,1.447]
[1750198912049,1.15113299,647.73,647.38,1.447]
[1750198913053,1.15113299,647.72,647.38,1.447]
[1750198913551,1.15113299,647.73,647.38,1.447]
[1750198913752,1.15113299,647.72,647.38,1.447]
[1750198915953,1.15113299,647.71,647.38,1.447]
[1750198916154,1.15113299,647.7,647.38,1.447]
[1750198916453,1.15113299,647.71,647.38,1.447]
[1750198916660,1.15113299,647.7,647.38,1.447]
[1750198917555,1.15113299,647.7,647.39,1.224]
[1750198918458,1.15113299,647.69,647.39,1.224]
[1750198919458,2.30112748,647.93,647.39,1.224]
[1750198919459,1.15113299,647.7,647.39,1.224]
[1750198919860,1.15113299,647.69,647.39,1.224]
[1750198920056,1.15113299,647.68,647.39,1.224]
[1750198920360,1.15113299,647.7,647.39,1.224]
[1750198920958,1.15113299,647.7,647.4,1.447]
[1750198923358,1.15113299,647.69,647.4,1.447]
[1750198924464,1.15113299,647.67,647.4,1.447]
[1750198924763,1.15113299,647.66,647.4,1.447]
[1750198925666,1.15113299,647.65,647.4,1.447]
[1750198925964,1.15110311,647.65,647.4,1.447]
[1750198926264,1.15110311,647.66,647.4,1.447]
[1750198926470,1.15110311,647.64,647.4,1.447]
[1750198929970,1.15110311,647.65,647.4,1.447]
[1750198934776,1.15110311,647.62,647.4,1.447]
[1750198936177,1.15110311,647.6,647.4,1.447]
[1750198936882,1.15110311,647.61,647.4,1.447]
[1750198938180,1.15110311,647.63,647.4,1.447]
[1750198941383,1.15110311,647.62,647.4,1.447]
[1750198943686,1.15110311,647.63,647.4,1.447]
[1750198943887,1.15110311,647.63,647.41,1.317]
[1750198944986,1.15110311,647.64,647.41,1.317]
[1750198945191,1.15110311,647.65,647.41,1.317]
[1750198949593,1.15110311,647.66,647.41,1.317]
[1750198949795,1.15110311,647.65,647.41,2.764]
[1750198951196,1.15110311,647.68,647.41,2.764]
[1750198951492,1.15110311,647.71,647.41,2.764]
[1750198951995,1.15110311,647.72,647.41,2.764]
[1750198953493,1.53408498,647.85,647.41,2.764]
[1750198953692,1.15063502,647.72,647.41,2.764]
[1750198954396,1.15063502,647.71,647.41,2.764]
[1750198954692,1.15063502,647.72,647.41,2.764]
[1750198954992,1.15063502,647.71,647.41,2.764]
[1750198955493,1.15063502,647.78,647.41,2.764]
[1750198955697,1.15063502,647.8,647.41,2.764]
[1750198955991,1.15063502,647.78,647.41,2.764]
[1750198956397,1.15063502,647.79,647.41,2.764]
[1750198958694,1.53408498,647.91,647.41,2.764]
[1750198958695,1.15063502,647.82,647.41,2.764]
[1750198960395,1.15063502,647.81,647.41,2.764]
[1750198965497,1.15063502,647.8,647.41,2.764]
[1750198967403,1.1510399,647.8,647.41,2.764]
[1750198967700,1.1510399,647.79,647.41,2.764]
[1750198968205,1.15104134,647.79,647.41,2.764]
[1750198968602,1.15104134,647.76,647.41,2.764]
[1750198969004,1.15104134,647.72,647.41,2.764]
[1750198971101,1.15104134,647.74,647.41,2.764]
[1750198971302,1.15104134,647.69,647.41,2.764]
[1750198971606,1.15104134,647.68,647.41,2.764]
[1750198971907,1.15104134,647.67,647.41,2.764]
[1750198972106,1.15104134,647.66,647.41,2.764]
[1750198972307,1.15104134,647.67,647.41,2.764]
[1750198972606,1.15104134,647.66,647.41,2.764]
[1750198972906,1.15104134,647.67,647.41,2.764]
[1750198975505,1.15104134,647.66,647.41,2.764]
[1750198975706,1.15104134,647.65,647.41,2.764]
[1750198975912,1.15104134,647.66,647.41,2.764]
[1750198976707,1.15104134,647.65,647.41,2.764]
[1750198976906,1.15104134,647.64,647.41,2.764]
[1750198977111,1.15104134,647.61,647.41,2.764]
[1750198978114,1.15104134,647.6,647.41,2.764]
[1750198978313,1.15104134,647.61,647.41,2.764]
[1750198978910,1.15104134,647.61,647.41,1.317]
[1750198980416,1.15104134,647.59,647.41,1.317]
[1750198980614,1.15104134,647.58,647.41,1.317]
[1750198982215,1.15104134,647.57,647.41,1.317]
[1750198983119,1.15104134,647.58,647.41,1.317]
[1750198984920,1.15104134,647.6,647.41,1.317]
[1750198986121,0.26865948,648.08,647.41,1.317]
[1750198986122,1.15104134,647.61,647.41,1.317]
[1750198986318,1.15104134,647.62,647.41,1.317]
[1750198987125,0.26865948,648.08,647.41,1.317]
[1750198987126,1.15104134,647.64,647.41,1.317]